bitfinex-derivatives/quotes_ETHF0:USTF0_20251003
["timestamp","ask_amount","ask_price","bid_price","bid_amount"]
[1759488343314,1.3611,4492.5,4492.4,0.40288276]
[1759488345302,1.3611,4492.5,4492.4,0.00249276]
[1759488345502,1.82815056,4492.5,4492.4,0.00249276]
[1759488345708,1.82815056,4492.5,4492.4,0.40288276]
[1759488346816,1.82815056,4492.5,4492.4,0.00249276]
[1759488350317,1.82815056,4492.5,4492.4,0.40288276]
[1759488351217,0.6569,4492.3,4492.2,0.40041]
[1759488351417,1.1665,4492.1,4492.0,0.40042]
[1759488352011,1.1665,4492.1,4491.9,0.40044]
[1759488352219,1.3611,4492.0,4491.9,0.40213792]
[1759488354717,1.3611,4492.0,4491.9,0.00169792]
[1759488358620,1.8270844,4492.0,4491.9,0.00169792]
[1759488359224,1.3611,4492.0,4491.9,0.85399792]
[1759488359423,1.1665,4492.0,4491.9,1.59623792]
[1759488360824,1.3611,4492.0,4491.9,1.59623792]
[1759488365533,1.1665,4492.0,4491.9,1.59623792]
[1759488368534,1.3663,4492.0,4491.9,1.59623792]
[1759488368733,1.3663,4492.0,4491.9,0.00169792]
[1759488369238,1.3663,4492.0,4491.9,0.40213792]
[1759488369829,1.3663,4492.0,4491.9,0.00169792]
[1759488371231,1.83129256,4492.0,4491.9,0.00169792]
[1759488371534,1.83129256,4492.0,4491.9,0.40213792]
[1759488371729,1.83129256,4492.0,4491.9,0.00169792]
[1759488373931,1.83129256,4492.0,4491.2,0.5019]
[1759488374136,4.3396,4491.3,4491.2,1.4665]
[1759488374530,4.3396,4491.3,4491.2,1.7917]
[1759488375030,4.3396,4491.3,4491.2,1.7942082]
[1759488375934,4.3396,4491.3,4491.2,1.3937082]
[1759488376423,4.3396,4491.3,4491.2,0.5666082]
[1759488377125,0.2256451,4492.1,4491.2,0.5666082]
[1759488377126,3.2078,4491.8,4491.2,6.3937082]
[1759488377326,0.0016451,4492.1,4492.0,1.3661]
[1759488377528,0.4843,4493.0,4492.1,1.56762]
[1759488377832,0.4843,4492.4,4492.1,1.3912]
[1759488378027,0.8006,4492.3,4492.2,2.35745348]
[1759488378231,0.8006,4492.3,4492.2,1.1672]
[1759488378433,4.3396,4492.7,4492.6,0.6653]
[1759488378632,4.34133204,4492.7,4492.6,1.3912]
[1759488378834,4.7966293,4492.7,4492.6,0.3401]
[1759488379530,4.7966293,4492.7,4492.6,0.842]
[1759488379727,4.7966293,4492.7,4492.6,1.1672]
[1759488380233,4.34133204,4492.7,4492.6,1.1672]
[1759488384837,4.34133204,4492.7,4492.6,1.06567]
[1759488385136,4.34133204,4492.7,4492.6,0.74047]
[1759488386833,0.0222,4492.9,4492.8,1.52016]
[1759488387142,3.2078,4493.2,4493.1,1.05763]
[1759488387442,3.2078,4493.2,4493.1,1.74413]
[1759488387941,0.00185773,4493.2,4493.1,6.74413]
[1759488392045,0.485,4494.3,4494.2,1.52133]
[1759488392242,0.8116,4494.3,4494.2,1.74533]
[1759488392543,3.2078,4494.4,4494.2,1.27413]
[1759488392739,3.2078,4494.4,4494.3,1.1211]
[1759488392944,4.33852757,4494.4,4494.3,1.1211]
[1759488393146,4.33852757,4494.4,4494.3,1.3451]
[1759488394839,4.33852757,4494.4,4494.3,1.74532]
[1759488395748,4.33852757,4494.4,4493.7,1.52138]
[1759488395749,0.3266,4493.8,4493.7,1.52138]
[1759488396043,4.33852757,4494.4,4494.3,0.40022]
[1759488396245,4.33852757,4494.4,4494.3,0.62422]
[1759488396446,4.33852757,4494.4,4494.3,0.95832]
[1759488398049,4.33852757,4494.4,4494.0,0.4712]
[1759488398249,4.33852757,4494.4,4494.1,0.224]
[1759488398453,4.33852757,4494.4,4494.3,0.40022]
[1759488399448,4.33852757,4494.4,4494.1,0.224]
[1759488399844,4.33852757,4494.4,4494.1,0.62423]
[1759488400043,4.33852757,4494.4,4494.2,0.62423]
[1759488400646,0.485,4494.3,4494.2,0.62423]
[1759488400846,1.129,4494.3,4494.2,0.62423]
[1759488401042,0.5172,4494.0,4493.9,0.40025]
[1759488401245,1.3196,4494.0,4493.9,0.62425]
[1759488403948,1.3196,4494.0,4493.9,0.224]
[1759488405950,0.644,4493.3,4493.2,0.40031]
[1759488406154,1.129,4493.3,4493.2,0.62431]
[1759488406344,1.129,4493.3,4493.2,0.95841]
[1759488407451,1.129,4493.3,4493.2,0.5581]
[1759488408456,1.129,4493.3,4493.2,0.95842]
[1759488410659,1.129,4493.3,4493.2,0.5581]
[1759488411559,1.129,4493.3,4493.2,0.95842]
[1759488412158,1.129,4493.3,4493.2,1.42962]
[1759488412358,1.129,4493.3,4493.2,0.224]
[1759488412657,1.129,4493.3,4493.2,0.62432]
[1759488413559,1.129,4493.3,4493.2,0.95842]
[1759488414452,1.129,4493.3,4493.2,1.42962]
[1759488415867,1.129,4493.3,4493.2,0.95842]
[1759488416167,1.129,4493.3,4493.2,1.42962]
[1759488416361,1.129,4493.3,4493.2,1.74542]
[1759488418664,1.129,4493.3,4493.2,1.20562]
[1759488418863,1.129,4493.3,4491.6,0.8053]
[1759488418864,0.644,4491.7,4491.6,0.8053]
[1759488419063,1.129,4491.7,4491.6,1.1211]
[1759488421972,1.129,4491.7,4491.6,0.6499]
[1759488422165,1.129,4491.7,4491.6,0.3341]
[1759488423165,1.129,4491.7,4491.5,0.224]
[1759488425069,1.353,4491.7,4491.2,0.0025082]
[1759488425269,4.2751,4491.3,4491.2,0.0025082]
[1759488427976,4.4991,4491.3,4491.2,1.1207082]
[1759488429067,4.2751,4491.3,4491.2,1.1207082]
[1759488432876,4.2751,4491.3,4491.2,1.5212082]
[1759488433781,3.2078,4491.3,4491.2,1.5212082]
[1759488434277,3.9724,4491.3,4491.2,1.5212082]
[1759488437687,3.5426,4491.8,4491.7,1.51865]
[1759488437975,3.5426,4491.8,4491.7,1.74265]
[1759488438178,3.5204,4491.8,4491.7,1.74265]
[1759488438380,3.9724,4491.8,4491.7,1.74265]
[1759488439178,3.2078,4491.8,4491.7,6.74265]
[1759488439778,3.6598,4491.8,4491.7,6.74265]
[1759488439985,0.452,4491.8,4491.7,6.74265]
[1759488442386,1.0895,4492.3,4492.2,0.70751]
[1759488442685,1.0895,4492.3,4492.2,0.62441]
[1759488443782,1.0895,4492.3,4492.2,0.93151]
[1759488443987,1.0895,4492.3,4492.2,1.74261]
[1759488444782,1.0673,4492.3,4492.2,0.62441]
[1759488444987,1.0673,4492.3,4492.2,0.224]
[1759488445180,1.0673,4492.3,4492.2,0.62441]
[1759488446488,1.0673,4492.3,4492.2,0.40041]
[1759488448084,1.0673,4492.3,4491.7,0.4477]
[1759488448290,0.6,4491.8,4491.7,0.7712]
[1759488448492,1.0633,4491.8,4491.7,0.9952]
[1759488448891,1.0633,4491.8,4491.7,1.39565]
[1759488449288,1.0633,4491.8,4491.7,1.71185]
[1759488451489,0.7847,4492.2,4492.1,1.04012]
[1759488451696,1.0855,4492.2,4492.1,1.48782]
[1759488451891,1.0633,4492.2,4492.1,0.72392]
[1759488452094,1.0633,4492.2,4492.1,0.40042]
[1759488453893,1.0633,4492.2,4491.8,0.4827]
[1759488454195,0.1796,4492.0,4491.9,0.40044]
[1759488454395,4.004,4492.0,4491.9,0.40044]
[1759488454597,4.4503,4492.0,4491.9,0.62444]
[1759488454799,4.4503,4492.0,4491.9,0.224]
[1759488455297,4.4503,4492.0,4491.9,0.5233]
[1759488455596,4.4503,4492.0,4491.9,0.92374]
[1759488455799,4.4503,4492.0,4491.9,0.5233]
[1759488457595,4.4503,4492.0,4491.8,0.40044]
[1759488457795,4.4503,4492.0,4491.9,0.224]
[1759488458902,4.4503,4492.0,4491.0,2.77080645]
[1759488458903,0.1796,4491.5,4491.4,1.18441234]
[1759488459105,0.4463,4491.4,4491.2,0.0025082]
[1759488459298,1.0629,4491.3,4491.2,0.0025082]
[1759488459500,1.0629,4491.3,4491.2,0.2265082]
[1759488460203,1.0629,4491.3,4491.2,0.9263082]
[1759488460496,1.0629,4491.3,4491.2,1.0085082]
[1759488460702,1.0629,4491.3,4491.2,0.5258082]
[1759488461503,1.0629,4491.3,4491.2,0.9263082]
[1759488461799,1.0629,4491.3,4491.2,0.2265082]
[1759488462301,1.0629,4491.3,4491.2,0.0025082]
[1759488462492,1.0629,4491.3,4491.2,0.2265082]
[1759488463798,1.0629,4491.3,4491.2,0.0025082]
[1759488464107,1.0629,4491.3,4491.2,0.7023082]
[1759488464906,1.0629,4491.3,4491.2,0.3018082]
[1759488467309,1.0629,4491.3,4491.2,1.5012082]
[1759488468913,0.7434,4491.3,4491.2,1.5012082]
[1759488469515,3.9512,4491.5,4491.4,1.49868]
[1759488470507,4.2707,4491.5,4491.4,1.49868]
[1759488471515,4.4503,4491.5,4491.4,1.49868]
[1759488471811,4.2707,4491.5,4491.4,1.49868]
[1759488475218,3.9512,4491.5,4491.4,1.49868]
[1759488475511,3.2078,4491.5,4491.4,1.49868]
[1759488476115,3.6541,4491.5,4491.4,1.49868]
[1759488477014,3.9512,4491.5,4491.4,1.49868]
[1759488477212,3.9512,4491.5,4491.4,1.72268]
[1759488477919,4.2707,4491.5,4491.4,1.72268]
[1759488479424,4.4503,4491.5,4491.4,1.72268]
[1759488480322,4.2707,4491.5,4491.4,1.72268]
[1759488481223,4.4503,4491.5,4491.4,1.3222]
[1759488481424,4.4503,4491.5,4491.4,0.8395]
[1759488481723,4.4503,4491.5,4491.4,0.92378]
[1759488482417,4.4503,4491.5,4491.4,0.62448]
[1759488483217,4.4503,4491.5,4491.4,0.91958]
[1759488484425,4.4503,4491.5,4491.4,0.62448]
[1759488485222,4.4503,4491.5,4491.4,1.80889234]
[1759488486324,4.4503,4491.5,4491.4,1.58489234]
[1759488486527,4.4503,4491.5,4491.4,1.80889234]
[1759488487328,4.4503,4491.5,4491.4,2.57779234]
[1759488488527,4.4503,4491.5,4491.4,0.5191]
[1759488488721,4.4503,4491.5,4491.4,0.91958]
[1759488489629,4.4503,4491.5,4491.4,2.11258805]
[1759488490028,4.4503,4491.5,4491.4,0.91958]
[1759488490326,4.4503,4491.5,4491.4,2.11258154]
[1759488493329,4.4503,4491.5,4491.4,0.91958]
[1759488493730,4.4503,4491.5,4491.4,0.40048]
[1759488493925,4.4503,4491.5,4491.4,0.224]
[1759488494128,4.4503,4491.5,4491.4,1.41707089]
[1759488494430,4.4503,4491.5,4491.4,0.224]
[1759488496936,4.4503,4491.5,4491.2,0.0025082]
[1759488497136,1.025,4491.4,4491.3,1.41747161]
[1759488497629,1.025,4491.4,4491.3,0.224]
[1759488503530,1.48075098,4491.4,4491.2,0.0025082]
[1759488503725,1.043769,4491.3,4491.2,0.0025082]
[1759488503931,1.480769,4491.3,4491.2,0.0025082]
[1759488505228,1.025,4491.3,4491.2,0.0025082]
[1759488505830,1.025,4491.3,4491.2,1.4714082]
[1759488508041,1.025,4491.3,4491.2,1.6954082]
[1759488510943,1.025,4491.3,4491.2,1.2444082]
[1759488512144,1.025,4491.3,4491.2,1.7116082]
[1759488512742,1.025,4491.3,4491.2,0.5335082]
[1759488512944,1.025,4491.3,4491.2,0.2265082]
[1759488513244,1.48101816,4491.3,4491.2,0.6270082]
[1759488514444,1.025,4491.3,4491.2,0.6270082]
[1759488518048,1.025,4491.3,4491.2,0.2265082]
[1759488518644,1.025,4491.3,4491.2,0.6270082]
[1759488519751,1.025,4491.3,4491.2,0.4030082]
[1759488520047,1.025,4491.3,4491.2,0.0025082]
[1759488521546,1.025,4491.3,4491.2,0.4030082]
[1759488522046,1.025,4491.3,4491.2,0.0025082]
[1759488522246,1.025,4491.3,4491.2,0.4030082]
[1759488523444,1.025,4491.3,4491.2,0.0025082]
[1759488524348,1.48186863,4491.3,4491.2,0.0025082]
[1759488528354,1.48186863,4491.3,4490.6,1.19347161]
[1759488528554,1.0289,4490.7,4490.6,0.40055]
[1759488529455,1.03160896,4490.7,4490.6,0.40288229]
[1759488532055,1.03160896,4490.7,4490.6,0.71488229]
[1759488532254,1.03160896,4490.7,4490.6,1.18208229]
[1759488536451,1.03160896,4490.7,4490.6,1.47248229]
[1759488539151,1.03160896,4490.7,4490.6,1.18208229]
[1759488539352,0.7534,4490.5,4490.0,1.19347161]
[1759488539551,4.2367,4490.1,4490.0,1.17981]
[1759488539946,1.2068,4490.0,4489.9,0.40061]
[1759488540259,1.0289,4489.9,4489.8,0.40062]
[1759488540555,0.7477,4489.9,4489.8,1.47209598]
[1759488540756,3.8852,4490.1,4490.0,0.40061]
[1759488540958,4.1795,4490.1,4490.0,1.47021]
[1759488541357,4.4607,4490.1,4490.0,1.47021]
[1759488543258,4.2367,4490.1,4490.0,1.47021]
[1759488543857,4.2367,4490.1,4490.0,1.00301]
[1759488544052,4.2367,4490.1,4490.0,0.71261]
[1759488546358,4.2367,4490.1,4490.0,1.17041]
[1759488551862,4.2367,4490.1,4490.0,0.71261]
[1759488553460,3.2078,4490.1,4490.0,0.99391]
[1759488553664,0.7497,4490.1,4490.0,1.45171]
[1759488554662,1.0525,4490.1,4490.0,1.67571]
[1759488563373,1.0525,4490.1,4490.0,0.93661]
[1759488563872,1.0525,4490.1,4490.0,1.39441]
[1759488565474,1.0525,4490.1,4490.0,1.67571]
[1759488566065,1.0525,4490.1,4490.0,1.2751]
[1759488566270,4.71941187,4490.1,4490.0,0.536]
[1759488566765,4.2603,4490.1,4490.0,0.536]
[1759488567977,4.2603,4490.1,4490.0,0.224]
[1759488569077,3.8224,4490.1,4489.8,1.19534759]
[1759488569372,1.0073,4489.9,4489.8,1.41934759]
[1759488570272,1.0073,4489.9,4489.8,1.81996759]
[1759488570572,1.0073,4489.9,4489.8,2.82176759]
[1759488570779,3.9208,4490.1,4490.0,1.40241]
[1759488571077,4.3809149,4490.1,4490.0,1.40241]
[1759488571675,4.6752149,4490.1,4490.0,1.40241]
[1759488571873,4.3809149,4490.1,4490.0,1.40241]
[1759488572777,3.9208,4490.1,4490.0,1.57511]
[1759488572979,3.2078,4490.1,4490.0,1.57511]
[1759488574079,3.6189,4490.1,4490.0,1.57511]
[1759488574477,3.8994,4490.1,4490.0,1.57511]
[1759488575079,4.2007,4490.1,4490.0,1.40241]
[1759488575473,4.2007,4490.1,4490.0,1.62641]
[1759488578177,0.9929,4490.1,4490.0,1.62641]
[1759488579387,0.9929,4490.1,4490.0,0.40061]
[1759488579590,0.9929,4490.1,4490.0,0.90221]
[1759488579885,0.9929,4490.1,4490.0,0.5016]
[1759488580884,0.9929,4490.1,4490.0,0.9188]
[1759488581384,0.9929,4490.1,4490.0,0.90221]
[1759488582384,0.4111,4490.1,4490.0,1.60911]
[1759488582584,0.6916,4490.1,4490.0,1.60911]
[1759488582783,0.9929,4490.1,4490.0,1.60911]
[1759488587391,0.9929,4490.1,4490.0,1.38511]
[1759488587691,0.9929,4490.1,4490.0,1.60911]
[1759488587893,0.9929,4490.1,4490.0,1.19191]
[1759488588394,0.9929,4490.1,4490.0,1.60911]
[1759488589094,0.9929,4490.1,4490.0,0.9845]
[1759488589289,0.9929,4490.1,4490.0,1.60911]
[1759488594395,0.6916,4490.1,4490.0,1.60911]
[1759488594597,0.9929,4490.1,4490.0,1.60911]
[1759488594797,0.9929,4490.1,4490.0,1.38511]
[1759488594999,0.9929,4490.1,4490.0,1.60911]
[1759488599405,0.9929,4490.1,4490.0,1.38511]
[1759488599602,0.9929,4490.1,4490.0,1.60911]
[1759488601106,0.9929,4490.1,4490.0,1.38511]
[1759488601406,0.9929,4490.1,4490.0,2.80207574]
[1759488601806,0.6916,4490.1,4490.0,2.80207574]
[1759488602007,0.6916,4490.1,4490.0,6.00987574]
[1759488602207,0.0222,4490.3,4490.2,1.40069]
[1759488602398,0.7322,4490.3,4490.2,1.62469]
[1759488602807,0.7322,4490.3,4490.2,1.40069]
[1759488603007,0.7322,4490.3,4490.2,1.62469]
[1759488604510,0.7322,4490.3,4490.2,6.62469]
[1759488604511,0.0222,4490.3,4490.2,6.62469]
[1759488605410,0.00270896,4490.7,4490.6,1.40065]
[1759488605613,0.00270896,4490.7,4490.6,4.83245]
[1759488606706,0.00270896,4490.7,4490.6,9.83245]
[1759488607110,0.00270896,4490.7,4490.6,11.42215751]
[1759488607709,0.00270896,4490.7,4490.6,9.83245]
[1759488608407,0.00270896,4490.7,4490.6,11.41900109]
[1759488610316,0.00270896,4490.7,4490.6,9.83245]
[1759488612116,8.96e-06,4490.7,4490.6,11.41900109]
[1759488613917,8.96e-06,4490.7,4490.6,46.15400109]
[1759488615222,8.96e-06,4490.7,4490.6,11.19500109]
[1759488615518,8.96e-06,4490.7,4490.6,44.56645]
[1759488624727,8.96e-06,4490.7,4490.6,44.56245]
[1759488626433,8.96e-06,4490.7,4490.6,46.14900109]
[1759488626832,8.96e-06,4490.7,4490.6,44.56245]
[1759488642446,8.96e-06,4490.7,4490.6,39.56245]
[1759488646546,8.96e-06,4490.7,4490.6,4.60845]
[1759488646748,8.96e-06,4490.7,4490.6,39.56145]
[1759488646950,8.96e-06,4490.7,4490.6,41.54860283]
[1759488649853,0.69260896,4490.7,4490.6,6.59560283]
[1759488650049,0.69260896,4490.7,4490.6,6.81960283]
[1759488650245,0.69260896,4490.7,4490.6,4.83245]
[1759488651654,0.69260896,4490.7,4490.6,6.81960283]
[1759488652254,8.96e-06,4490.7,4490.6,6.38050283]
[1759488655052,0.29270896,4490.7,4490.6,6.38050283]
[1759488655256,0.69260896,4490.7,4490.6,4.80625]
[1759488656056,0.69260896,4490.7,4490.6,6.79340283]
[1759488656258,0.69260896,4490.7,4490.6,4.80625]
[1759488657756,0.95930896,4490.7,4490.6,4.58225]
[1759488657957,0.95930896,4490.7,4490.6,4.39335]
[1759488658158,0.95930896,4490.7,4490.6,6.38048371]
[1759488659055,0.95930896,4490.7,4490.6,6.15648371]
[1759488659261,0.95930896,4490.7,4490.6,6.38048371]
[1759488659658,0.95930896,4490.7,4490.6,6.79338371]
[1759488659860,0.95930896,4490.7,4490.6,4.58225]
[1759488660061,0.95930896,4490.7,4490.6,4.39335]
[1759488660961,0.95930896,4490.7,4490.6,4.80625]
[1759488661759,0.95930896,4490.7,4490.6,3.88175]
[1759488662064,5.95930896,4490.7,4490.6,5.42235001]
[1759488662264,5.95930896,4490.7,4490.6,3.83235]
[1759488664857,5.95930896,4490.7,4490.6,3.60835]
[1759488665066,5.95930896,4490.7,4490.6,3.83235]
[1759488667867,5.95930896,4490.7,4490.6,4.11765]
[1759488668369,5.95930896,4490.7,4490.6,4.81625]
[1759488673869,8.96e-06,4490.7,4490.6,4.40205]
[1759488674072,8.96e-06,4490.7,4490.6,5.99205001]
[1759488674971,8.96e-06,4490.7,4490.6,4.40205]
[1759488676871,8.96e-06,4490.7,4490.6,5.99010172]
[1759488677371,8.96e-06,4490.7,4490.6,4.40205]
[1759488687176,0.26160896,4490.7,4490.6,4.40205]
[1759488687476,0.64560896,4490.7,4490.6,4.80945]
[1759488688379,0.38400896,4490.7,4490.6,4.80945]
[1759488690875,0.64560896,4490.7,4490.6,4.58545]
[1759488691075,0.91660896,4490.7,4490.6,4.80945]
[1759488691680,0.64560896,4490.7,4490.6,4.80945]
[1759488693783,8.96e-06,4490.7,4490.6,4.40205]
[1759488699488,0.67320896,4490.7,4490.6,5.99117193]
[1759488699878,0.67320896,4490.7,4490.6,6.40677193]
[1759488700385,0.67320896,4490.7,4490.6,6.18277193]
[1759488700586,0.67320896,4490.7,4490.6,6.40677193]
[1759488701280,0.67320896,4490.7,4490.6,6.18277193]
[1759488701591,0.93850896,4490.7,4490.6,4.81765]
[1759488702081,0.93850896,4490.7,4490.6,4.59365]
[1759488702382,0.93850896,4490.7,4490.6,4.81765]
[1759488703486,0.93850896,4490.7,4490.6,4.59365]
[1759488703687,0.93850896,4490.7,4490.6,4.40205]
[1759488703986,0.93850896,4490.7,4490.6,4.11765]
[1759488704584,0.93850896,4490.7,4490.6,3.89365]
[1759488704784,0.93850896,4490.7,4490.6,4.11765]
[1759488704986,0.93850896,4490.7,4490.6,5.31071178]
[1759488705784,0.93850896,4490.7,4490.6,5.72631178]
[1759488706884,0.93850896,4490.7,4490.6,4.53325]
[1759488708189,0.93850896,4490.7,4490.6,4.30925]
[1759488708688,0.93850896,4490.7,4490.6,4.53325]
[1759488709285,0.93850896,4490.7,4490.6,4.11765]
[1759488711688,0.93850896,4490.7,4490.6,4.53325]
[1759488713284,0.93850896,4490.7,4490.6,4.79235]
[1759488715090,0.93850896,4490.7,4490.6,4.37675]
[1759488715691,0.93850896,4490.7,4490.6,4.15275]
[1759488715892,0.93850896,4490.7,4490.6,4.79235]
[1759488717794,8.96e-06,4490.7,4490.6,4.37675]
[1759488721401,8.96e-06,4490.7,4490.6,5.96587193]
[1759488722099,8.96e-06,4490.7,4490.6,4.37675]
[1759488728208,8.96e-06,4490.7,4490.6,4.15275]
[1759488728400,0.66780896,4490.7,4490.6,5.96455012]
[1759488728802,0.66780896,4490.7,4490.6,6.35705012]
[1759488730111,8.96e-06,4490.7,4490.6,6.35705012]
[1759488730304,8.96e-06,4490.7,4490.6,5.96455012]
[1759488731312,8.96e-06,4490.7,4490.6,5.74055012]
[1759488731507,8.96e-06,4490.7,4490.6,5.96455012]
[1759488733218,0.66780896,4490.7,4490.6,4.76925]
[1759488734215,8.96e-06,4490.7,4490.6,4.37675]
[1759488735903,0.25650896,4490.7,4490.6,4.37675]
[1759488736204,0.66780896,4490.7,4490.6,4.37675]
[1759488736418,0.66780896,4490.7,4490.6,4.76925]
[1759488738813,8.96e-06,4490.7,4490.6,4.37675]
[1759488740414,0.25650896,4490.7,4490.6,4.37675]
[1759488740610,0.94410896,4490.7,4490.6,4.37675]
[1759488741116,0.94410896,4490.7,4490.6,4.76925]
[1759488742322,0.94410896,4490.7,4490.6,4.54525]
[1759488742620,0.94410896,4490.7,4490.6,4.76925]
[1759488742918,0.94410896,4490.7,4490.6,4.54525]
[1759488743120,0.94410896,4490.7,4490.6,4.76925]
[1759488744321,0.94410896,4490.7,4490.6,4.54525]
[1759488744517,0.94410896,4490.7,4490.6,4.76925]
[1759488747123,0.66780896,4490.7,4490.6,4.76925]
[1759488748524,8.96e-06,4490.7,4490.6,4.37675]
[1759488749720,8.96e-06,4490.7,4490.6,5.96455012]
[1759488752026,8.96e-06,4490.7,4490.6,4.37675]
[1759488763930,8.96e-06,4490.7,4490.6,4.15275]
[1759488764130,8.96e-06,4490.7,4490.6,4.37675]
[1759488768333,8.96e-06,4490.7,4490.6,4.15275]
[1759488768534,8.96e-06,4490.7,4490.6,4.37575]
[1759488779442,8.96e-06,4490.7,4490.6,4.15275]
[1759488779642,8.96e-06,4490.7,4490.6,4.37575]
[1759488782543,8.96e-06,4490.7,4490.6,4.15275]
[1759488782748,8.96e-06,4490.9,4490.8,1.33563]
[1759488783038,0.6618,4491.8,4491.7,0.93345]
[1759488783343,0.6618,4491.8,4491.7,1.55855]
[1759488783737,0.66422385,4491.8,4491.7,1.55855]
[1759488784342,0.66422385,4491.8,4491.7,1.33555]
[1759488784544,0.66422385,4491.8,4491.7,1.55855]
[1759488784844,0.92062385,4491.8,4491.7,1.55855]
[1759488785344,0.92062385,4491.8,4491.7,2.74841305]
[1759488785544,0.92062385,4491.8,4491.7,1.94586305]
[1759488786145,0.92062385,4491.8,4491.7,2.34631305]
[1759488786345,0.92062385,4491.8,4491.7,2.74841305]
[1759488787049,0.92062385,4491.8,4491.7,1.33555]
[1759488787346,0.92062385,4491.8,4491.7,1.55855]
[1759488788045,0.92062385,4491.8,4491.7,1.33555]
[1759488788342,0.92062385,4491.8,4491.7,1.55855]
[1759488790247,0.39372385,4491.8,4491.7,1.55855]
[1759488790440,0.00242385,4491.8,4491.7,1.55855]
[1759488790840,0.00242385,4491.8,4491.7,2.74841305]
[1759488791336,0.00242385,4491.8,4491.7,1.55855]
[1759488795449,0.00242385,4491.8,4491.7,2.74841305]
[1759488796853,0.00242385,4491.8,4491.7,1.55855]
[1759488797440,0.0222,4492.6,4492.5,0.40038]
[1759488797646,0.0222,4492.6,4492.5,6.10869395]
[1759488797950,0.6618,4493.1,4493.0,1.33544]
[1759488798146,0.6618,4493.1,4493.0,1.55844]
[1759488798653,0.66457551,4493.1,4493.0,1.71530914]
[1759488798949,0.00277551,4493.1,4493.0,1.71530914]
[1759488799147,0.00277551,4493.1,4493.0,1.31496914]
[1759488799350,0.92097551,4493.1,4493.0,0.22516914]
[1759488799547,5.92097551,4493.1,4493.0,0.00216914]
[1759488799748,5.92097551,4493.1,4493.0,0.22516914]
[1759488802852,5.92097551,4493.1,4493.0,0.00216914]
[1759488808158,0.92097551,4493.1,4493.0,0.25436914]
[1759488808366,0.92097551,4493.1,4493.0,1.27730914]
[1759488808565,0.92097551,4493.1,4493.0,0.00216914]
[1759488809063,0.92097551,4493.1,4493.0,0.25436914]
[1759488809665,0.92097551,4493.1,4493.0,0.65470914]
[1759488810366,0.00277551,4493.1,4493.0,1.03980914]
[1759488810563,0.36157551,4493.1,4493.0,1.42110914]
[1759488811962,0.60957551,4493.1,4493.0,1.42110914]
[1759488812560,0.60957551,4493.1,4493.0,6.42110914]
[1759488812561,0.00277551,4493.1,4493.0,6.42110914]
[1759488812760,0.00277551,4493.1,4493.0,7.60832803]
[1759488813365,0.00277551,4493.1,4493.0,7.60672188]
[1759488813765,0.00277551,4493.1,4493.0,6.42110914]
[1759488813961,0.00277551,4493.1,4493.0,7.60672611]
[1759488815668,0.00277551,4493.1,4493.0,6.42110914]
[1759488815961,0.24517551,4493.1,4493.0,7.60672611]
[1759488816169,0.62127551,4493.1,4493.0,6.64510914]
[1759488816667,0.37887551,4493.1,4493.0,6.64510914]
[1759488817166,0.00277551,4493.1,4493.0,6.64510914]
[1759488820169,0.00277551,4493.1,4493.0,7.83072611]
[1759488820365,0.00277551,4493.1,4493.0,6.64510914]
[1759488821568,0.00277551,4493.1,4493.0,7.83072611]
[1759488822367,0.00277551,4493.1,4493.0,2.83072611]
[1759488823376,0.00277551,4493.1,4493.0,2.83065554]
[1759488824374,0.00277551,4493.1,4493.0,2.60665554]
[1759488824574,0.00277551,4493.1,4493.0,2.83065554]
[1759488825374,0.00277551,4493.1,4493.0,1.64510914]
[1759488835279,0.00277551,4493.1,4493.0,2.8310988]
[1759488836182,0.00277551,4493.1,4493.0,2.6070988]
[1759488836372,0.00277551,4493.1,4493.0,2.8310988]
[1759488836881,0.00277551,4493.1,4493.0,1.64510914]
[1759488840183,0.00277551,4493.1,4493.0,3.23312035]
[1759488840876,0.00277551,4493.1,4493.0,3.00912035]
[1759488841082,0.00277551,4493.1,4493.0,1.64410914]
[1759488845285,0.00277551,4493.1,4493.0,1.42110914]
[1759488845479,0.00277551,4493.1,4493.0,36.35810914]
[1759488856600,0.00277551,4493.1,4493.0,79.14312316]
[1759488856995,5.51e-06,4493.1,4493.0,77.15810914]
[1759488862503,5.51e-06,4493.1,4493.0,80.85510914]
[1759488862706,5.51e-06,4493.1,4493.0,77.15810914]
[1759488874107,0.6013,4493.9,4493.8,1.25187]
[1759488874309,0.6013,4493.9,4493.8,4.68267]
[1759488874512,0.8547,4493.9,4493.8,4.68267]
[1759488874911,0.85645485,4493.9,4493.8,4.68267]
[1759488875114,0.85645485,4493.9,4493.8,4.86104707]
[1759488879217,0.85645485,4493.9,4493.8,6.4433196]
[1759488879410,0.35755485,4493.9,4493.8,6.4433196]
[1759488879619,0.35755485,4493.9,4493.8,4.86104707]
[1759488879812,0.85645485,4493.9,4493.8,4.86104707]
[1759488885020,0.85645485,4493.9,4493.8,4.68267]
[1759488885822,0.85645485,4493.9,4493.8,4.45967]
[1759488886017,0.85645485,4493.9,4493.8,4.07967]
[1759488887115,0.85645485,4493.9,4493.8,5.66254421]
[1759488888723,0.85645485,4493.9,4493.8,6.01284421]
[1759488888922,0.85645485,4493.9,4493.8,4.68267]
[1759488889126,0.60305485,4493.9,4493.8,4.68267]
[1759488894623,0.1515,4494.5,4493.8,4.68267]
[1759488894624,3.5744,4495.1,4493.8,9.68267]
[1759488894824,0.3666,4495.1,4495.0,1.41496]
[1759488895026,0.2516,4495.5,4495.4,1.26812]
[1759488895223,0.4808,4495.5,4495.4,2.67767828]
[1759488895425,0.9841,4495.5,4495.4,1.49112]
[1759488895622,0.98683297,4495.5,4495.4,2.67767828]
[1759488897027,0.98683297,4495.5,4495.4,1.49112]
[1759488897430,0.98683297,4495.5,4495.4,2.67608127]
[1759488898434,0.98683297,4495.5,4495.4,1.83308127]
[1759488898631,0.98683297,4495.5,4495.4,0.40012]
[1759488898825,0.98683297,4495.5,4495.4,0.62312]
[1759488900934,0.98683297,4495.5,4495.3,1.18496127]
[1759488900935,0.62023297,4495.5,4495.3,1.18496127]
[1759488901231,0.98683297,4495.5,4495.4,0.223]